bitfinex-derivatives/quotes_SOLF0:USTF0_20250110
["timestamp","ask_amount","ask_price","bid_price","bid_amount"]
[1736521347525,5.98,186.02,185.89,32.1783109]
[1736521347732,5.98,186.02,185.9,3.1346]
[1736521348540,32.1783109,185.98,185.9,3.1346]
[1736521348731,32.1783109,186.01,185.97,2.6887]
[1736521349038,32.1783109,186.04,185.9,3.1346]
[1736521349235,32.1783109,186.04,185.99,2.6884]
[1736521349531,32.1783109,186.04,185.9,3.1346]
[1736521349836,34.8660109,186.04,185.94,2.6891]
[1736521350139,32.1783109,186.01,185.9,3.1346]
[1736521350336,32.1783109,185.98,185.9,1.5667]
[1736521350542,32.1783109,185.98,185.82,1.5152]
[1736521350735,32.1783109,185.95,185.82,3.0712]
[1736521350937,32.1783109,185.98,185.82,3.0712]
[1736521351136,5.98,186.0,185.84,32.1783109]
[1736521352043,5.98,186.0,185.82,3.0712]
[1736521352244,32.1783109,185.97,185.82,3.0712]
[1736521352442,2.6889,185.96,185.91,2.6896]
[1736521352638,32.1783109,185.97,185.82,3.0712]
[1736521352838,5.98,186.0,185.84,32.1783109]
[1736521353742,5.98,186.0,185.82,3.0712]
[1736521353940,5.98,186.0,185.84,32.1783109]
[1736521354439,32.1783109,186.04,185.87,32.1783109]
[1736521354640,2.6881,186.02,185.96,2.6888]
[1736521354837,2.6881,186.02,185.87,32.1783109]
[1736521355034,32.1783109,186.04,185.87,32.1783109]
[1736521355238,32.1783109,186.07,185.9,32.1783109]
[1736521355439,5.8,186.09,185.91,1.5411]
[1736521355639,5.8,186.09,186.0,2.6883]
[1736521355640,2.6878,186.04,186.0,2.6883]
[1736521355840,2.6878,186.04,185.91,1.5411]
[1736521355841,5.8,186.09,185.92,1.6011]
[1736521356043,5.8,186.09,185.93,1.5281]
[1736521356745,2.6873,186.07,185.97,2.6887]
[1736521357040,2.6873,186.07,185.93,1.5281]
[1736521357041,5.98,186.08,185.93,1.5281]
[1736521357245,2.6875,186.06,186.0,2.6882]
[1736521357444,5.98,186.08,185.93,1.5281]
[1736521357647,32.1783109,186.04,185.93,1.5281]
[1736521357944,2.6879,186.03,185.93,1.5281]
[1736521358144,32.1783109,186.04,185.93,1.5281]
[1736521358343,5.79,186.03,185.93,1.5281]
[1736521358740,32.1783109,186.01,185.82,32.1783109]
[1736521358945,32.1783109,185.98,185.86,3.2622]
[1736521359143,32.1783109,185.95,185.86,3.2622]
[1736521359342,32.1783109,185.92,185.86,3.2622]
[1736521359543,32.1783109,185.92,185.83,1.5885]
[1736521359739,2.69,185.89,185.84,2.6906]
[1736521359944,32.1783109,185.89,185.77,4.8507]
[1736521360247,32.1783109,185.86,185.77,4.8507]
[1736521360450,32.1783109,185.89,185.77,4.8507]
[1736521360841,32.1783109,185.86,185.73,83.92]
[1736521361240,32.1783109,185.83,185.7,3.2622]
[1736521361840,32.1783109,185.8,185.58,21.54634517]
[1736521362041,32.1783109,185.8,185.65,32.1783109]
[1736521362246,38.1583109,185.8,185.65,32.1783109]
[1736521362449,38.1583109,185.8,185.63,3.1223]
[1736521363341,38.1583109,185.8,185.65,32.1783109]
[1736521363548,5.98,185.8,185.65,32.1783109]
[1736521364252,38.1583109,185.8,185.65,32.1783109]
[1736521365050,40.8495109,185.8,185.65,32.1783109]
[1736521365245,38.1583109,185.8,185.65,32.1783109]
[1736521365551,5.98,185.8,185.75,2.6918]
[1736521365751,5.98,185.8,185.65,32.1783109]
[1736521365953,1.659,185.82,185.76,2.6917]
[1736521366147,7.659,185.82,185.76,2.6917]
[1736521366342,32.1783109,185.78,185.4,32.1783109]
[1736521366652,32.1783109,185.78,185.72,2.6923]
[1736521366653,34.8698109,185.78,185.72,2.6923]
[1736521366857,32.1783109,185.78,185.6,32.1783109]
[1736521367043,1.659,185.82,185.66,32.1783109]
[1736521367248,1.659,185.82,185.67,4.8737]
[1736521367744,1.659,185.82,185.77,2.6916]
[1736521368254,32.1783109,185.8,185.76,2.6916]
[1736521368451,32.1783109,185.8,185.67,4.8737]
[1736521370152,38.1783109,185.83,185.67,4.8737]
[1736521371256,38.1783109,185.83,185.79,2.6912]
[1736521371554,2.6912,185.8,185.75,2.6918]
[1736521371752,38.1783109,185.83,185.67,4.8737]
[1736521372161,38.1783109,185.83,185.66,32.1783109]
[1736521372162,32.1783109,185.78,185.63,32.1783109]
[1736521372462,32.1783109,185.75,185.54,5.3899]
[1736521372662,32.1783109,185.72,185.69,2.6926]
[1736521372855,38.1783109,185.75,185.57,4.743]
[1736521373164,40.8703109,185.75,185.59,32.1783109]
[1736521373466,32.1783109,185.72,185.57,4.743]
[1736521374166,32.1783109,185.69,185.57,4.743]
[1736521374359,32.1783109,185.69,185.56,83.94]
[1736521374864,32.1783109,185.66,185.56,83.94]
[1736521375061,32.1783109,185.63,185.48,4.8299]
[1736521375862,32.1783109,185.63,185.58,2.6943]
[1736521376065,32.1783109,185.63,185.48,4.8299]
[1736521376665,34.8720109,185.63,185.52,2.6952]
[1736521376863,32.1783109,185.6,185.48,4.8299]
[1736521377560,32.1783109,185.57,185.4,32.1783109]
[1736521377763,32.1783109,185.54,185.49,2.6956]
[1736521377955,32.1783109,185.51,185.43,1.5597]
[1736521378161,34.8737109,185.51,185.45,2.6963]
[1736521378462,6.0,185.56,185.36,1.5597]
[1736521378463,32.1783109,185.48,185.36,1.5597]
[1736521378659,38.1783109,185.48,185.36,1.5597]
[1736521378865,32.1783109,185.45,185.36,1.5597]
[1736521379059,32.1783109,185.51,185.36,1.5597]
[1736521379361,32.1783109,185.54,185.38,32.1783109]
[1736521379769,32.1783109,185.57,185.52,2.6951]
[1736521380066,32.1783109,185.6,185.45,6.0]
[1736521380261,32.1783109,185.6,185.56,2.6946]
[1736521380464,32.1783109,185.6,185.46,4.6297]
[1736521380662,32.1783109,185.57,185.46,4.6297]
[1736521381172,32.1783109,185.6,185.46,4.6297]
[1736521381466,3.1363,185.63,185.61,2.6938]
[1736521381467,32.1783109,185.63,185.61,2.6938]
[1736521381661,32.1783109,185.63,185.47,38.1783109]
[1736521381859,32.1783109,185.66,185.5,32.1783109]
[1736521382264,32.1783109,185.69,185.51,0.99033043]
[1736521382465,32.1783109,185.69,185.56,2.6946]
[1736521382765,32.1783109,185.66,185.5,32.1783109]
[1736521383266,1.6112,185.71,185.56,32.1783109]
[1736521383471,32.1783109,185.72,185.57,3.2298]
[1736521383670,32.1783109,185.72,185.61,2.6939]
[1736521383874,32.1783109,185.69,185.57,4.7619]
[1736521384270,32.1783109,185.66,185.57,3.2298]
[1736521384571,32.1783109,185.63,185.5,1.543]
[1736521384773,32.1783109,185.66,185.5,3.0981]
[1736521384968,32.1783109,185.66,185.52,32.1783109]
[1736521385166,32.1783109,185.6,185.51,0.99027927]
[1736521385363,32.1783109,185.66,185.48,1.5551]
[1736521385364,32.1783109,185.63,185.48,1.5551]
[1736521385576,5.78,185.6,185.5,32.1783109]
[1736521385866,37.9583109,185.6,185.48,1.5551]
[1736521386071,5.78,185.6,185.48,1.5551]
[1736521386267,5.78,185.6,185.5,32.1783109]
[1736521386467,5.78,185.6,185.59,2.6942]
[1736521386772,6.0,185.64,185.5,32.1783109]
[1736521387070,32.1783109,185.69,185.53,32.1783109]
[1736521387370,2.6925,185.71,185.6,2.694]
[1736521387571,32.1783109,185.72,185.57,3.1568]
[1736521388467,32.1783109,185.69,185.57,3.1568]
[1736521388866,32.1783109,185.66,185.5,32.1783109]
[1736521389172,32.1783109,185.66,185.51,1.5225]
[1736521389561,2.6935,185.65,185.58,2.6942]
[1736521389761,2.6935,185.65,185.51,1.5225]
[1736521389762,32.1783109,185.66,185.51,1.5225]
[1736521390771,32.1783109,185.69,185.53,32.1783109]
[1736521391171,32.1783109,185.66,185.51,1.5225]
[1736521391366,6.0,185.71,185.51,1.5225]
[1736521391367,32.1783109,185.63,185.51,1.5225]
[1736521391571,32.1783109,185.6,185.49,1.6483]
[1736521392168,34.8724109,185.6,185.49,1.6483]
[1736521392369,32.1783109,185.6,185.48,1.5551]
[1736521392564,32.1783109,185.57,185.41,1.529]
[1736521392875,32.1783109,185.57,185.42,1.542]
[1736521393273,32.1783109,185.57,185.51,2.6952]
[1736521393571,32.1783109,185.54,185.42,1.542]
[1736521393770,2.6948,185.55,185.42,1.542]
[1736521393970,32.1783109,185.54,185.42,1.542]
[1736521394166,32.1783109,185.51,185.42,1.542]
[1736521394368,32.1783109,185.51,185.41,3.0949]
[1736521395074,32.1783109,185.57,185.41,3.0949]
[1736521395277,2.6948,185.56,185.45,2.6961]
[1736521395577,32.1783109,185.54,185.41,3.0949]
[1736521395871,32.1783109,185.57,185.41,3.0949]
[1736521396074,32.1783109,185.57,185.43,32.1783109]
[1736521396279,1.5263,185.59,185.43,32.1783109]
[1736521396577,32.1783109,185.57,185.43,32.1783109]
[1736521396787,32.1783109,185.54,185.41,3.0949]
[1736521397180,32.1783109,185.51,185.41,3.0949]
[1736521397478,34.8733109,185.54,185.41,3.0949]
[1736521398273,32.1783109,185.51,185.37,6.02]
[1736521398470,32.1783109,185.51,185.36,1.6774]
[1736521398668,32.1783109,185.48,185.36,1.6774]
[1736521398873,34.8741109,185.48,185.36,1.6774]
[1736521399077,32.1783109,185.48,185.36,1.6774]
[1736521399475,2.6961,185.46,185.32,90.1]
[1736521399678,2.6961,185.46,185.32,88.9334]
[1736521399876,34.8747109,185.45,185.32,88.9334]
[1736521400073,32.1783109,185.42,185.25,74.14164185]
[1736521400278,32.1783109,185.46,185.28,32.1783109]
[1736521400676,32.1783109,185.46,185.31,32.1783109]
[1736521401374,32.1783109,185.46,185.26,16.2713]
[1736521401375,32.1783109,185.46,185.29,32.1783109]
[1736521401881,32.1783109,185.46,185.32,32.1783109]
[1736521402080,32.1783109,185.46,185.43,2.6965]
[1736521402280,35.3560109,185.49,185.35,38.2583109]
[1736521402475,32.1783109,185.52,185.38,32.1783109]
[1736521402684,4.7214,185.57,185.41,32.1783109]
[1736521403071,4.7214,185.57,185.39,1.6215]
[1736521403072,32.1783109,185.55,185.39,1.6215]
[1736521403577,32.1783109,185.55,185.4,0.99095941]
[1736521403776,32.1783109,185.61,185.44,32.1783109]
[1736521403976,32.1783109,185.61,185.47,32.1783109]
[1736521404187,32.1783109,185.64,185.52,2.6951]
[1736521404380,4.6954,185.66,185.48,1.5594]
[1736521404581,32.1783109,185.64,185.49,32.1783109]
[1736521404781,32.1783109,185.64,185.57,2.6944]
[1736521404983,32.1783109,185.64,185.5,1.6608]
[1736521405185,2.6938,185.63,185.56,2.6946]
[1736521405384,32.1783109,185.64,185.5,1.6608]
[1736521405681,32.1783109,185.64,185.59,2.6942]
[1736521405876,32.1783109,185.64,185.5,1.6608]
[1736521406077,32.1783109,185.7,185.52,32.1783109]
[1736521406283,32.1783109,185.7,185.59,2.6941]
[1736521406480,32.1783109,185.7,185.53,6.08]
[1736521406775,32.1783109,185.7,185.55,32.1783109]
[1736521406980,32.1783109,185.7,185.59,2.6941]
[1736521407179,32.1783109,185.7,185.55,32.1783109]
[1736521407377,32.1783109,185.67,185.54,1.5229]
[1736521407675,32.1783109,185.64,185.5,1.6608]
[1736521407879,32.1783109,185.67,185.52,32.1783109]
[1736521408179,4.7393,185.74,185.51,2.51325364]
[1736521408180,32.1783109,185.7,185.55,32.1783109]
[1736521408388,32.1783109,185.7,185.55,38.2783109]
[1736521408580,32.1783109,185.7,185.59,2.6941]
[1736521408780,32.1783109,185.7,185.55,38.2783109]
[1736521408982,2.6925,185.72,185.55,38.2783109]
[1736521409279,32.1783109,185.73,185.55,38.2783109]
[1736521409682,32.1783109,185.7,185.55,38.2783109]
[1736521410083,32.1783109,185.73,185.55,38.2783109]
[1736521410283,2.6926,185.7,185.64,2.6935]
[1736521410484,32.1783109,185.7,185.55,38.2783109]
[1736521410682,32.1783109,185.7,185.55,6.1]
[1736521411088,32.1783109,185.7,185.55,38.2783109]
[1736521411488,32.1783109,185.7,185.65,2.6933]
[1736521411783,32.1783109,185.73,185.58,32.1783109]
[1736521411991,32.1783109,185.73,185.55,38.2783109]
[1736521412184,32.1783109,185.7,185.55,38.2783109]
[1736521412584,32.1783109,185.7,185.66,2.6932]
[1736521412889,32.1783109,185.73,185.58,32.1783109]
[1736521413191,32.1783109,185.79,185.64,32.1783109]
[1736521413392,32.1783109,185.79,185.65,3.183]
[1736521413584,2.6916,185.78,185.65,3.183]
[1736521413781,32.1783109,185.79,185.65,3.183]
[1736521413986,2.6916,185.77,185.7,2.6925]
[1736521414286,32.1783109,185.79,185.65,3.183]
[1736521415086,88.39402039,185.88,185.7,32.1783109]
[1736521415286,32.1783109,185.88,185.73,32.1783109]
[1736521415480,32.1783109,185.88,185.74,7.6449]
[1736521415684,32.1783109,185.85,185.78,2.6914]
[1736521415882,32.1783109,185.85,185.74,7.6449]
[1736521416388,32.1783109,185.88,185.74,7.6449]
[1736521416790,2.6902,185.87,185.81,2.691]
[1736521416987,2.6902,185.87,185.74,7.6449]
[1736521416988,32.1783109,185.88,185.74,7.6449]
[1736521417489,1.6437,185.9,185.76,32.1783109]
[1736521417786,32.1783109,185.94,185.79,32.1783109]
[1736521417985,1.6213,185.97,185.82,32.1783109]
[1736521418185,35.3691109,186.0,185.83,6.14]
[1736521418384,35.3691109,186.0,185.95,2.6889]
[1736521418589,33.7436109,186.0,185.87,6.14]
[1736521419590,32.1783109,185.97,185.87,6.14]
[1736521419896,8.97,185.97,185.86,1.5992]
[1736521420091,0.4447,185.97,185.96,2.6888]
[1736521420391,0.0001,185.97,185.96,2.6888]
[1736521421088,32.1783109,186.09,185.94,32.1783109]
[1736521421891,32.1783109,186.09,185.92,6.14]
[1736521422094,32.1783109,186.09,186.0,2.6882]
[1736521422281,32.1783109,186.12,185.94,32.1783109]
[1736521422487,32.1783109,186.09,185.94,32.1783109]
[1736521422688,32.1783109,186.09,186.03,2.6878]
[1736521422892,32.1783109,186.06,185.91,116.1783109]
[1736521423088,32.1783109,186.06,185.91,84.0]
[1736521423290,32.1783109,186.03,185.93,2.6892]
[1736521423592,32.1783109,186.0,185.89,1.6232]
[1736521423788,2.6886,185.98,185.91,2.6895]
[1736521423994,32.1783109,185.97,185.89,1.6232]
[1736521424202,32.1783109,185.97,185.85,6.16]
[1736521424689,5.9587,185.98,185.85,6.16]
[1736521424885,0.67,185.96,185.79,32.1783109]
[1736521425183,32.1783109,185.91,185.8,7.1487622]
[1736521425385,34.8680109,185.91,185.8,6.16]
[1736521425591,32.1783109,185.91,185.8,6.16]
[1736521425789,32.1783109,185.94,185.79,1.6327]
[1736521425997,32.1783109,185.87,185.8,2.6911]
[1736521426194,32.1783109,185.87,185.78,84.0]
[1736521426489,34.8685109,185.87,185.78,84.0]
[1736521426688,32.1783109,185.87,185.78,84.0]
[1736521426891,33.7274109,185.93,185.82,2.6908]
[1736521427089,33.7274109,185.93,185.79,1.5196]
[1736521427497,2.6894,185.92,185.79,1.5196]
[1736521427795,33.7274109,185.93,185.79,1.5196]
[1736521427996,33.7274109,185.93,185.87,2.6901]
[1736521428593,33.7274109,185.93,185.86,2.6903]
[1736521428594,32.1783109,185.93,185.86,2.6903]
[1736521428794,32.1783109,185.93,185.79,1.5196]
[1736521428995,32.1783109,185.9,185.79,1.5196]
[1736521429189,2.6899,185.89,185.79,1.5196]
[1736521429594,34.8681109,185.9,185.84,2.6906]
[1736521429794,32.1783109,185.9,185.79,1.5196]
[1736521429998,32.1783109,185.87,185.78,84.0]
[1736521430298,32.1783109,185.9,185.78,84.0]
[1736521430496,32.1783109,185.87,185.78,84.0]
[1736521430699,2.6906,185.84,185.78,84.0]
[1736521430899,34.8689109,185.84,185.73,1.6327]
[1736521431094,32.1783109,185.84,185.73,1.6327]
[1736521431289,32.1783109,185.84,185.79,2.6913]
[1736521431489,32.1783109,185.84,185.73,1.6327]
[1736521431898,2.6903,185.86,185.78,2.6913]
[1736521432099,32.1783109,185.84,185.71,1.6579]
[1736521432797,32.1783109,185.87,185.71,1.6579]
[1736521433101,32.1783109,185.84,185.71,1.6579]
[1736521433295,1.6629,185.86,185.68,3.262]
[1736521433491,32.1783109,185.78,185.71,2.6923]
[1736521433693,32.1783109,185.78,185.68,1.6541]
[1736521433998,32.1783109,185.78,185.71,2.6925]
[1736521434200,32.1783109,185.78,185.68,1.6541]
[1736521434399,32.1783109,185.78,185.66,1.5416]
[1736521435197,32.1783109,185.81,185.66,1.5416]
[1736521435595,1.5594,185.82,185.66,1.5416]
[1736521435596,32.1783109,185.78,185.66,1.5416]
[1736521435903,32.1783109,185.81,185.66,1.5416]
[1736521436400,1.5594,185.82,185.67,32.1783109]
[1736521436799,2.6913,185.79,185.72,2.6922]
[1736521436999,1.5594,185.82,185.66,1.5416]
[1736521437000,32.1783109,185.78,185.66,1.5416]
[1736521437902,32.1783109,185.81,185.66,1.5416]
[1736521438303,1.5594,185.82,185.67,32.1783109]
[1736521438496,1.5594,185.82,185.78,2.6914]
[1736521438699,1.5594,185.82,185.67,32.1783109]
[1736521439103,32.1783109,185.87,185.7,32.1783109]
[1736521439298,32.1783109,185.9,185.73,32.1783109]
[1736521439504,4.8386,185.92,185.79,32.1783109]
[1736521439707,117.61656643,185.96,185.79,32.1783109]
[1736521439900,117.61656643,185.96,185.8,3.14]
[1736521440101,117.61656643,185.96,185.82,32.1783109]
[1736521440301,36.1083109,185.96,185.8,9.28]
[1736521440496,32.1783109,185.92,185.8,1.6092]
[1736521440705,32.1783109,185.92,185.76,32.1783109]
[1736521441107,32.1783109,185.95,185.79,32.1783109]
[1736521441307,3.93,185.96,185.82,32.1783109]
[1736521441504,32.1783109,185.95,185.8,1.6414]
[1736521442405,32.1783109,185.92,185.79,6.14]
[1736521442600,34.8679109,185.92,185.85,2.6904]
[1736521442805,32.1783109,185.95,185.79,38.3183109]
[1736521443204,3.3592,185.94,185.88,2.6899]
[1736521443401,0.67,185.94,185.82,32.1783109]
[1736521443604,0.67,185.94,185.83,1.6362]
[1736521443806,3.26,185.96,185.88,32.1783109]
[1736521444104,1.6003,186.04,185.88,6.12]
[1736521444301,1.6003,186.04,185.91,32.1783109]
[1736521444501,33.7786109,186.04,185.89,3.2755]
[1736521444702,32.1783109,186.01,185.89,3.2755]
[1736521444907,32.1783109,185.98,185.83,85.6162]
[1736521445605,32.1783109,185.89,185.73,32.1783109]
[1736521445804,6.14,185.88,185.78,2.6913]
[1736521445998,7.6739,185.88,185.71,4.8507]
[1736521446197,32.1783109,185.86,185.71,4.8507]
[1736521446401,2.6909,185.83,185.77,2.6916]
[1736521446597,32.1783109,185.86,185.71,4.8507]
[1736521446806,32.1783109,185.83,185.71,3.2755]
[1736521447002,34.8691109,185.83,185.74,2.6919]
[1736521447203,32.1783109,185.86,185.71,3.2755]
[1736521448107,32.1783109,185.86,185.79,2.6913]
[1736521448308,32.1783109,185.86,185.71,3.2755]
[1736521449009,32.1783109,185.83,185.71,3.2755]
[1736521449209,32.1783109,185.83,185.68,85.5352]
[1736521449508,32.1783109,185.83,185.68,83.96]
[1736521449707,32.1783109,185.8,185.68,83.96]
[1736521450009,6.1,185.79,185.68,83.96]
[1736521450206,7.7732,185.79,185.68,83.96]
[1736521450506,10.4645,185.79,185.68,83.96]
[1736521450708,1.6385,185.82,185.68,83.96]
[1736521450903,1.6732,185.84,185.7,32.1783109]
[1736521451107,6.1,185.86,185.73,32.1783109]
[1736521451300,84.76825553,185.89,185.76,32.1783109]
[1736521451503,84.76825553,185.89,185.87,2.69]
[1736521451709,147.888946,185.9,185.79,32.1783109]
[1736521452007,147.888946,185.9,185.74,1.6442]
[1736521452008,32.1783109,185.89,185.74,1.6442]
[1736521452400,32.1783109,185.86,185.71,9.2629]
[1736521452597,38.2983109,185.86,185.71,9.2629]
[1736521453311,38.2983109,185.86,185.71,3.1629]
[1736521453509,32.1783109,185.83,185.68,83.96]
[1736521453712,32.1783109,185.8,185.68,83.96]
[1736521454312,2.6918,185.76,185.69,2.6927]
[1736521454507,32.1783109,185.77,185.61,32.1783109]
[1736521454508,38.2783109,185.77,185.61,32.1783109]
[1736521455208,38.2783109,185.77,185.6,1.6442]
[1736521455209,32.1783109,185.74,185.6,1.6442]
[1736521455608,4.3419,185.76,185.7,2.6926]
[1736521455808,1.6502,185.76,185.61,32.1783109]
[1736521456111,1.6502,185.76,185.67,2.693]
[1736521456315,1.6502,185.76,185.6,1.6442]
[1736521456512,32.1783109,185.74,185.6,1.6442]
[1736521456702,32.1783109,185.71,185.59,3.1192]
[1736521456903,1.5216,185.75,185.55,83.98]
[1736521456904,32.1783109,185.67,185.55,83.98]
[1736521457107,38.2783109,185.67,185.55,83.98]
[1736521458515,38.2783109,185.67,185.55,2.6948]
[1736521458715,38.2783109,185.67,185.52,3.2451]
[1736521459014,2.6935,185.64,185.52,35.4234109]
[1736521459406,2.6936,185.63,185.58,2.6943]
[1736521459612,38.2783109,185.67,185.52,3.2451]
[1736521460012,32.1783109,185.64,185.43,1.5844]
[1736521460213,32.1783109,185.61,185.44,2.53581773]
[1736521460408,32.1783109,185.58,185.44,1.5453]
[1736521460613,32.1783109,185.55,185.45,2.6961]
[1736521460817,32.1783109,185.55,185.43,1.6078]
[1736521461108,32.1783109,185.55,185.49,2.6956]
[1736521461314,32.1783109,185.55,185.43,1.6078]
[1736521461710,32.1783109,185.58,185.43,33.7861109]
[1736521461911,6.06,185.59,185.46,32.1783109]
[1736521462107,6.06,185.59,185.47,1.6397]
[1736521462309,32.1783109,185.58,185.47,1.6397]
[1736521462513,32.1783109,185.58,185.44,1.5873]
[1736521462915,1.6644,185.6,185.44,1.5873]
[1736521463221,3.2069,185.63,185.49,32.1783109]
[1736521463417,2.6933,185.66,185.52,32.1783109]
[1736521463811,2.6934,185.65,185.57,2.6944]
[1736521464011,32.1783109,185.67,185.53,1.6024]
[1736521464419,2.6936,185.63,185.57,2.6945]
[1736521464719,32.1783109,185.67,185.53,1.6024]
[1736521465022,4.8322,185.71,185.55,32.1783109]
[1736521465420,2.6927,185.7,185.59,2.6941]
[1736521465619,1.6501,185.71,185.55,32.1783109]
[1736521465930,1.6501,185.71,185.67,2.693]
[1736521466125,32.1783109,185.76,185.61,32.1783109]
[1736521466318,32.1783109,185.76,185.58,38.2583109]
[1736521466526,2.6929,185.68,185.62,2.6937]
[1736521466827,2.6929,185.68,185.58,6.08]
[1736521467028,2.6929,185.68,185.62,2.6938]
[1736521467227,32.1783109,185.73,185.58,6.08]
[1736521467431,32.1783109,185.76,185.58,38.2583109]
[1736521467822,32.1783109,185.73,185.58,38.2583109]
[1736521468022,32.1783109,185.73,185.58,6.08]
[1736521468227,32.1783109,185.73,185.58,38.2583109]
[1736521468528,2.6922,185.73,185.58,38.2583109]
[1736521468723,32.1783109,185.76,185.58,38.2583109]
[1736521469027,711.28,188.25,185.64,32.1783109]
[1736521469028,32.1783109,185.79,185.64,32.1783109]
[1736521469234,32.1783109,185.79,185.7,2.6925]
[1736521469424,32.1783109,185.79,185.65,4.7154]
[1736521469728,32.1783109,185.82,185.7,2.6926]
[1736521469925,2.6913,185.79,185.65,4.7154]
[1736521470124,32.1783109,185.82,185.67,32.1783109]
[1736521470321,9.3965,185.84,185.78,2.6914]
[1736521470624,32.1783109,185.88,185.73,32.1783109]
[1736521470825,1.6128,185.9,185.84,2.6906]
[1736521471026,76.37467588,185.91,185.76,38.2983109]
[1736521471027,72.94427588,185.91,185.76,38.2983109]
[1736521471226,70.25467588,185.91,185.77,3.1645]
[1736521471427,70.25467588,185.91,185.81,2.691]
[1736521471633,2.6899,185.89,185.77,3.1645]
[1736521471931,32.1783109,185.91,185.85,2.6904]
[1736521472228,32.1783109,185.91,185.77,3.1645]
[1736521472424,32.1783109,185.91,185.85,2.6904]
[1736521472624,33.8508109,185.94,185.85,2.6904]
[1736521472934,32.1783109,185.91,185.83,2.6907]
[1736521473137,32.1783109,185.91,185.77,3.1645]
[1736521473935,33.8508109,185.94,185.77,3.1645]
[1736521474137,2.6896,185.91,185.77,3.1645]
[1736521474437,33.8508109,185.94,185.77,3.1645]
[1736521474828,32.1783109,185.91,185.77,3.1645]
[1736521475026,32.1783109,185.87,185.74,1.536]
[1736521475225,32.1783109,185.84,185.68,1.5989]
[1736521475429,2.6914,185.79,185.73,2.6921]
[1736521475626,2.6914,185.79,185.68,1.5989]
[1736521476033,32.1783109,185.81,185.68,1.5989]
[1736521476236,32.1783109,185.78,185.62,1.5682]
[1736521476440,32.1783109,185.75,185.63,1.5873]
[1736521477239,34.8702109,185.75,185.63,1.5873]
[1736521478146,32.1783109,185.78,185.63,1.5873]
[1736521478540,6.1,185.79,185.64,32.1783109]
[1736521479148,2.6919,185.75,185.64,32.1783109]
[1736521479349,32.1783109,185.78,185.64,32.1783109]
[1736521479648,32.1783109,185.78,185.63,1.5873]
[1736521480143,6.1,185.79,185.64,32.1783109]
[1736521480348,32.1783109,185.81,185.64,32.1783109]
[1736521480647,32.1783109,185.78,185.63,1.5873]
[1736521481149,2.6925,185.71,185.65,2.6932]
[1736521481343,2.6925,185.71,185.63,1.5873]
[1736521481544,32.1783109,185.75,185.63,1.5873]
[1736521481746,32.1783109,185.75,185.67,2.6929]
[1736521481747,2.6923,185.72,185.67,2.6929]
[1736521482045,32.1783109,185.72,185.62,1.5989]
[1736521482245,32.1783109,185.69,185.54,6.14]
[1736521482438,32.1783109,185.69,185.53,4.8061]
[1736521483438,32.1783109,185.72,185.55,32.1783109]
[1736521483843,32.1783109,185.69,185.53,4.8061]
[1736521484045,2.6933,185.66,185.61,2.6939]
[1736521484244,32.1783109,185.69,185.61,2.6939]
[1736521484547,32.1783109,185.69,185.6,2.694]
[1736521484748,32.1783109,185.69,185.53,4.8061]
[1736521485143,2.6931,185.67,185.62,2.6938]
[1736521485345,32.1783109,185.69,185.53,4.8061]
[1736521485538,32.1783109,185.72,185.55,32.1783109]
[1736521486048,3.1573,185.74,185.58,32.1783109]
[1736521486244,2.6925,185.71,185.65,2.6933]
[1736521486450,3.1573,185.74,185.58,32.1783109]
[1736521486850,2.6928,185.69,185.64,2.6934]
[1736521487049,32.1783109,185.72,185.58,32.1783109]
[1736521487451,32.1783109,185.69,185.55,32.1783109]
[1736521487648,32.1783109,185.69,185.53,4.8061]
[1736521488451,32.1783109,185.72,185.55,32.1783109]
[1736521488650,2.6936,185.64,185.58,2.6942]
[1736521488848,32.1783109,185.69,185.53,4.8061]
[1736521489048,32.1783109,185.66,185.53,4.8061]
[1736521489455,2.6938,185.62,185.57,2.6944]
[1736521490648,2.6936,185.64,185.58,2.6943]
[1736521490953,32.1783109,185.66,185.58,2.6943]
[1736521491153,32.1783109,185.66,185.53,4.8061]
[1736521491355,38.2583109,185.66,185.53,4.8061]